[Event "8th Mersin Open 2024"]
[Site "Mersin"]
[Date "2024.11.11"]
[Round "2"]
[White "Karatiken, Beray"]
[Black "Karabas, Beren Nisa"]
[Result "1-0"]
[ECO "D00"]
[WhiteElo "1594"]
[BlackElo "1546"]
[Annotator "NA RC"]
[PlyCount "123"]
[EventDate "2024.11.10"]
[EventType "swiss"]
[EventCountry "TUR"]
[SourceTitle "playchess.com"]
[Source "ChessBase"]
[SourceQuality "1"]
[TimeControl "5400+30"]

1. d4 {[%emt 0:01:00]} d5 {[%emt 0:01:00]} 2. Bf4 {[%emt 0:00:30]} Nf6 {[%emt 0:00:30]} 3. e3 {[%emt 0:00:00]} e6 {[%emt 0:00:00]} 4. Nd2 {[%emt 0:00:00]} Bd6 {[%emt 0:00:00]} 5. Bg3 {[%emt 0:00:00]} c5 {[%emt 0:00:30]} 6. c3 {[%emt 0:00:00]} Qc7 {[%emt 0:01:30]} 7. Ngf3 {[%emt 0:00:30]} Nbd7 {[%emt 0:00:30]} 8. Bd3 {[%emt 0:03:30]} b6 {[%emt 0:03:30]} 9. e4 {[%emt 0:04:30]} Bxg3 {[%emt 0:10:30]} 10. hxg3 {[%emt 0:00:00]} dxe4 {[%emt 0:00:30]} 11. Nxe4 {[%emt 0:00:00]} Bb7 {[%emt 0:04:30]} 12. Nxf6+ {[%emt 0:02:30]} Nxf6 {[%emt 0:02:30]} 13. Bb5+ {[%emt 0:01:30]} Ke7 {[%emt 0:07:30]} 14. O-O {[%emt 0:03:30]} a6 {[%emt 0:00:30]} 15. Bd3 {[%emt 0:00:30]} c4 {[%emt 0:01:30]} 16. Bc2 {[%emt 0:00:30]} Rhd8 {[%emt 0:00:30]} 17. Ne5 {[%emt 0:03:30]} Kf8 {[%emt 0:05:30]} 18. Qe2 {[%emt 0:03:30]} Rac8 {[%emt 0:02:30]} 19. g4 {[%emt 0:02:30]} Nd7 {[%emt 0:04:30]} 20. f4 {[%emt 0:02:30]} Nxe5 {[%emt 0:04:30]} 21. fxe5 {[%emt 0:00:30]} Kg8 {[%emt 0:01:30]} 22. g5 {[%emt 0:01:30]} g6 {[%emt 0:09:30]} 23. Rf4 {[%emt 0:01:30]} Qe7 {[%emt 0:02:30]} 24. Qg4 {[%emt 0:02:30]} Rd7 {[%emt 0:03:30]} 25. Raf1 {[%emt 0:00:30]} Bd5 {[%emt 0:03:30]} 26. Qg3 {[%emt 0:02:30]} Kg7 {[%emt 0:00:30]} 27. Qh4 {[%emt 0:04:30]} Rh8 {[%emt 0:01:30]} 28. Qh6+ {[%emt 0:06:30]} Kg8 {[%emt 0:00:30]} 29. Rh4 {[%emt 0:01:30]} Rd8 {[%emt 0:04:30]} 30. Kh2 {[%emt 0:02:30]} Qf8 {[%emt 0:00:30]} 31. Bxg6 {[%emt 0:00:30]} Qxh6 {[%emt 0:02:30]} 32. Bxf7+ {[%emt 0:00:30]} Kf8 {[%emt 0:00:30]} 33. gxh6 {[%emt 0:00:30]} Ke7 {[%emt 0:00:30]} 34. Rg4 {[%emt 0:00:30]} Rdf8 {[%emt 0:00:30]} 35. Rg7 {[%emt 0:00:30]} Kd8 {[%emt 0:00:30]} 36. Rf6 {[%emt 0:00:30]} a5 {[%emt 0:01:30]} 37. g4 {[%emt 0:03:30]} b5 {[%emt 0:01:30]} 38. g5 {[%emt 0:00:30]} a4 {[%emt 0:01:30]} 39. a3 {[%emt 0:00:30]} Kc8 {[%emt 0:04:56]} 40. Kg3 {[%emt 0:01:30]} Rd8 {[%emt 0:03:06]} 41. Bxe6+ {[%emt 0:00:30]} Bxe6 {[%emt 0:00:30]} 42. Rxe6 {[%emt 0:00:30]} Rd7 {[%emt 0:00:30]} 43. Ra6 {[%emt 0:00:30]} Rb7 {[%emt 0:00:07]} 44. Ra8+ {[%emt 0:01:30]} Rb8 {[%emt 0:00:06]} 45. Rxb8+ {[%emt 0:00:30]} Kxb8 {[%emt 0:00:05]} 46. e6 {[%emt 0:00:00]} Kc8 {[%emt 0:00:18]} 47. d5 {[%emt 0:00:00]} Kb8 {[%emt 0:00:27]} 48. e7 {[%emt 0:00:30]} Kc8 {[%emt 0:00:04]} 49. Rxh7 {[%emt 0:00:30]} Rxh7 {[%emt 0:00:18]} 50. e8=Q+ {[%emt 0:00:30]} Kc7 {[%emt 0:00:04]} 51. Qe5+ {[%emt 0:00:00]} Kb6 {[%emt 0:00:08]} 52. Qg7 {[%emt 0:00:00]} Rxg7 {[%emt 0:00:36]} 53. hxg7 {[%emt 0:00:30]} b4 {[%emt 0:00:30]} 54. g8=Q {[%emt 0:00:30]} bxc3 {[%emt 0:00:00]} 55. bxc3 {[%emt 0:00:00]} Ka5 {[%emt 0:00:00]} 56. Kf4 {[%emt 0:00:00]} Kb5 {[%emt 0:00:03]} 57. Ke5 {[%emt 0:00:30]} Kc5 {[%emt 0:00:30]} 58. Qc8+ {[%emt 0:00:00]} Kb6 {[%emt 0:00:00]} 59. Kd6 {[%emt 0:00:00]} Ka5 {[%emt 0:00:00]} 60. Qb8 {[%emt 0:00:30]} Ka6 {[%emt 0:00:13]} 61. Kc6 {[%emt 0:00:00]} Ka5 {[%emt 0:00:30]} 62. Qa7# {[%emt 0:00:00]} 1-0

[Event "8th Mersin Open 2024"]
[Site "Mersin"]
[Date "2024.11.11"]
[Round "2"]
[White "Ahmad, Alo."]
[Black "Alim, Mehmet Emir"]
[Result "0-1"]
[ECO "B90"]
[WhiteElo "1560"]
[BlackElo "1532"]
[Annotator "NA RC"]
[PlyCount "62"]
[EventDate "2024.11.10"]
[EventType "swiss"]
[EventCountry "TUR"]
[SourceTitle "playchess.com"]
[Source "ChessBase"]
[SourceQuality "1"]
[TimeControl "5400+30"]

1. e4 {[%emt 0:04:00]} c5 {[%emt 0:01:00]} 2. Nc3 {[%emt 0:00:00]} Nc6 {[%emt 0:00:30]} 3. Nf3 {[%emt 0:01:00]} e6 {[%emt 0:00:00]} 4. d4 {[%emt 0:00:30]} cxd4 {[%emt 0:00:00]} 5. Nxd4 {[%emt 0:00:30]} d6 {[%emt 0:00:00]} 6. Be3 {[%emt 0:00:30]} Nf6 {[%emt 0:00:00]} 7. Be2 {[%emt 0:00:00]} a6 {[%emt 0:00:30]} 8. Qd2 {[%emt 0:02:00]} Qc7 {[%emt 0:00:30]} 9. O-O {[%emt 0:01:30]} b5 {[%emt 0:00:00]} 10. Bf3 {[%emt 0:05:30]} Bb7 {[%emt 0:00:00]} 11. a3 {[%emt 0:02:30]} Be7 {[%emt 0:00:30]} 12. Rac1 {[%emt 0:04:30]} Ne5 {[%emt 0:01:30]} 13. b3 {[%emt 0:06:30]} Nxf3+ {[%emt 0:04:30]} 14. gxf3 {[%emt 0:00:00]} Rc8 {[%emt 0:03:30]} 15. Nce2 {[%emt 0:01:00]} d5 {[%emt 0:00:00]} 16. exd5 {[%emt 0:07:30]} Bxd5 {[%emt 0:00:00]} 17. Nf4 {[%emt 0:01:30]} Bb7 {[%emt 0:01:30]} 18. Nfe2 {[%emt 0:09:30]} Bxa3 {[%emt 0:00:30]} 19. Rcd1 {[%emt 0:04:30]} Bd6 {[%emt 0:00:30]} 20. Ng3 {[%emt 0:04:30]} Nd5 {[%emt 0:06:30]} 21. f4 {[%emt 0:03:30]} Nxf4 {[%emt 0:01:30]} 22. Bxf4 {[%emt 0:00:30]} Bxf4 {[%emt 0:00:30]} 23. Qe2 {[%emt 0:00:00]} O-O {[%emt 0:00:30]} 24. Qg4 {[%emt 0:00:00]} Be5 {[%emt 0:04:30]} 25. Rfe1 {[%emt 0:03:30]} Bxd4 {[%emt 0:01:30]} 26. Rxd4 {[%emt 0:00:00]} Qc6 {[%emt 0:00:00]} 27. Qh3 {[%emt 0:02:00]} Qf3 {[%emt 0:02:00]} 28. Re3 {[%emt 0:01:30]} Qf6 {[%emt 0:00:30]} 29. Rh4 {[%emt 0:02:30]} Rxc2 {[%emt 0:00:30]} 30. f4 {[%emt 0:02:30]} Qa1+ {[%emt 0:00:30]} 31. Nf1 {[%emt 0:00:00]} Rg2+ {[%emt 0:00:30]} 0-1

[Event "8th Mersin Open 2024"]
[Site "Mersin"]
[Date "2024.11.11"]
[Round "2"]
[White "Fidan, Naz Mercan"]
[Black "Akcay, Batin"]
[Result "0-1"]
[ECO "B22"]
[WhiteElo "1552"]
[BlackElo "1573"]
[Annotator "NA RC"]
[PlyCount "179"]
[EventDate "2024.11.10"]
[EventType "swiss"]
[EventCountry "TUR"]
[SourceTitle "playchess.com"]
[Source "ChessBase"]
[SourceQuality "1"]
[TimeControl "5400+30"]

1. e4 {[%emt 0:01:00]} c5 {[%emt 0:01:00]} 2. c3 {[%emt 0:00:30]} Nf6 {[%emt 0:00:30]} 3. e5 {[%emt 0:00:00]} Nd5 {[%emt 0:00:30]} 4. d4 {[%emt 0:00:00]} cxd4 {[%emt 0:00:00]} 5. cxd4 {[%emt 0:00:00]} e6 {[%emt 0:00:00]} 6. Nf3 {[%emt 0:00:00]} Nc6 {[%emt 0:00:00]} 7. Bc4 {[%emt 0:02:30]} Nb6 {[%emt 0:00:00]} 8. Bb3 {[%emt 0:00:00]} Be7 {[%emt 0:01:30]} 9. O-O {[%emt 0:02:00]} d5 {[%emt 0:02:30]} 10. exd6 {[%emt 0:04:30]} Qxd6 {[%emt 0:00:30]} 11. Nc3 {[%emt 0:00:30]} O-O {[%emt 0:01:30]} 12. d5 {[%emt 0:06:30]} exd5 {[%emt 0:00:30]} 13. Nxd5 {[%emt 0:00:30]} Nxd5 {[%emt 0:00:30]} 14. Qxd5 {[%emt 0:00:00]} Qxd5 {[%emt 0:00:30]} 15. Bxd5 {[%emt 0:00:00]} Nb4 {[%emt 0:00:00]} 16. Bb3 {[%emt 0:01:30]} Bf6 {[%emt 0:01:00]} 17. Bd2 {[%emt 0:13:30]} Nd3 {[%emt 0:00:30]} 18. Bc3 {[%emt 0:00:30]} Nxb2 {[%emt 0:09:30]} 19. Bxf6 {[%emt 0:00:30]} gxf6 {[%emt 0:00:30]} 20. Rab1 {[%emt 0:00:30]} Nd3 {[%emt 0:00:00]} 21. Bd5 {[%emt 0:00:30]} Rb8 {[%emt 0:00:00]} 22. Rb3 {[%emt 0:18:30]} Nf4 {[%emt 0:00:30]} 23. Bc4 {[%emt 0:07:30]} Kh8 {[%emt 0:04:30]} 24. Re1 {[%emt 0:12:30]} Be6 {[%emt 0:03:30]} 25. Bxe6 {[%emt 0:01:30]} Nxe6 {[%emt 0:00:30]} 26. g3 {[%emt 0:01:30]} b6 {[%emt 0:01:30]} 27. Ra3 {[%emt 0:00:30]} Rb7 {[%emt 0:00:30]} 28. Rd1 {[%emt 0:00:30]} Rc8 {[%emt 0:00:30]} 29. Ne1 {[%emt 0:04:30]} Rbc7 {[%emt 0:01:30]} 30. Kg2 {[%emt 0:01:30]} Kg7 {[%emt 0:00:30]} 31. h4 {[%emt 0:00:30]} Rg8 {[%emt 0:06:30]} 32. Kf3 {[%emt 0:03:20]} Rgc8 {[%emt 0:00:30]} 33. Kg2 {[%emt 0:00:51]} b5 {[%emt 0:02:30]} 34. Rb3 {[%emt 0:06:00]} Rb7 {[%emt 0:00:30]} 35. Rd5 {[%emt 0:01:21]} Rc5 {[%emt 0:01:30]} 36. Rxc5 {[%emt 0:00:49]} Nxc5 {[%emt 0:00:30]} 37. Rb1 {[%emt 0:00:23]} a5 {[%emt 0:01:30]} 38. Kf3 {[%emt 0:01:26]} b4 {[%emt 0:01:30]} 39. Ke3 {[%emt 0:01:05]} Na4 {[%emt 0:00:30]} 40. Rb3 {[%emt 0:01:36]} Nc3 {[%emt 0:00:00]} 41. Nd3 {[%emt 0:05:04]} Nxa2 {[%emt 0:01:00]} 42. Kd4 {[%emt 0:00:59]} a4 {[%emt 0:00:30]} 43. Rb1 {[%emt 0:00:30]} b3 {[%emt 0:00:30]} 44. Nc5 {[%emt 0:00:30]} Rb4+ {[%emt 0:00:30]} 45. Kd3 {[%emt 0:00:36]} b2 {[%emt 0:00:00]} 46. Nxa4 {[%emt 0:00:30]} Rxa4 {[%emt 0:00:00]} 47. Rxb2 {[%emt 0:00:28]} Nb4+ {[%emt 0:08:30]} 48. Ke3 {[%emt 0:01:00]} Nd5+ {[%emt 0:00:30]} 49. Kf3 {[%emt 0:00:00]} Nc7 {[%emt 0:00:30]} 50. Ke3 {[%emt 0:00:31]} Ra3+ {[%emt 0:00:30]} 51. Ke4 {[%emt 0:01:53]} Ne6 {[%emt 0:00:30]} 52. Rc2 {[%emt 0:00:31]} Kg6 {[%emt 0:00:30]} 53. Rc8 {[%emt 0:01:58]} f5+ {[%emt 0:01:30]} 54. Ke5 {[%emt 0:00:41]} Ra5+ {[%emt 0:00:00]} 55. Kd6 {[%emt 0:00:37]} Kf6 {[%emt 0:00:00]} 56. Rc2 {[%emt 0:00:48]} Ra8 {[%emt 0:00:30]} 57. Rb2 {[%emt 0:00:58]} Rd8+ {[%emt 0:00:30]} 58. Kc6 {[%emt 0:00:06]} Rd3 {[%emt 0:00:30]} 59. Kb5 {[%emt 0:00:46]} f4 {[%emt 0:00:30]} 60. Kc4 {[%emt 0:00:36]} Rd4+ {[%emt 0:00:30]} 61. Kc3 {[%emt 0:00:04]} fxg3 {[%emt 0:00:00]} 62. fxg3 {[%emt 0:00:30]} Rg4 {[%emt 0:00:00]} 63. Rf2+ {[%emt 0:00:04]} Kg6 {[%emt 0:00:00]} 64. Rg2 {[%emt 0:00:43]} Nf4 {[%emt 0:00:00]} 65. Rh2 {[%emt 0:00:30]} Rxg3+ {[%emt 0:00:30]} 66. Kd4 {[%emt 0:00:30]} Rh3 {[%emt 0:00:30]} 67. Ra2 {[%emt 0:00:28]} Rxh4 {[%emt 0:00:00]} 68. Ke3 {[%emt 0:00:06]} Nd5+ {[%emt 0:00:00]} 69. Kf3 {[%emt 0:00:14]} h5 {[%emt 0:00:00]} 70. Kg3 {[%emt 0:00:42]} Rg4+ {[%emt 0:00:00]} 71. Kf3 {[%emt 0:00:00]} f5 {[%emt 0:00:30]} 72. Ra8 {[%emt 0:00:38]} Kg5 {[%emt 0:00:30]} 73. Rd8 {[%emt 0:00:00]} Nf6 {[%emt 0:00:30]} 74. Rd1 {[%emt 0:00:38]} Rf4+ {[%emt 0:00:00]} 75. Kg2 {[%emt 0:00:14]} Ne4 {[%emt 0:00:00]} 76. Rd8 {[%emt 0:01:02]} Rg4+ {[%emt 0:00:30]} 77. Kh2 {[%emt 0:00:23]} Kf4 {[%emt 0:00:30]} 78. Ra8 {[%emt 0:01:42]} h4 {[%emt 0:00:30]} 79. Ra1 {[%emt 0:00:46]} Rg3 {[%emt 0:00:30]} 80. Rf1+ {[%emt 0:00:32]} Kg4 {[%emt 0:00:30]} 81. Ra1 {[%emt 0:00:18]} Nd2 {[%emt 0:00:00]} 82. Kh1 {[%emt 0:00:35]} Rh3+ {[%emt 0:00:00]} 83. Kg2 {[%emt 0:00:13]} f4 {[%emt 0:00:30]} 84. Ra4 {[%emt 0:01:13]} Rb3 {[%emt 0:00:30]} 85. Ra8 {[%emt 0:00:30]} f3+ {[%emt 0:00:30]} 86. Kh1 {[%emt 0:00:20]} f2 {[%emt 0:00:30]} 87. Rg8+ {[%emt 0:00:30]} Kh5 {[%emt 0:00:00]} 88. Rf8 {[%emt 0:00:37]} f1=Q+ {[%emt 0:00:00]} 89. Rxf1 {[%emt 0:00:13]} Nxf1 {[%emt 0:00:30]} 90. Kg1 {[%emt 0:00:17]} 0-1

[Event "8th Mersin Open 2024"]
[Site "Mersin"]
[Date "2024.11.11"]
[Round "2"]
[White "Dere, Ali Mete"]
[Black "Arslan, Hazar"]
[Result "1/2-1/2"]
[ECO "C08"]
[WhiteElo "1550"]
[BlackElo "1597"]
[Annotator "NA RC"]
[PlyCount "57"]
[EventDate "2024.11.10"]
[EventType "swiss"]
[EventCountry "TUR"]
[SourceTitle "playchess.com"]
[Source "ChessBase"]
[SourceQuality "1"]
[TimeControl "5400+30"]

1. e4 {[%emt 0:01:00]} e6 {[%emt 0:01:00]} 2. d4 {[%emt 0:00:30]} d5 {[%emt 0:00:30]} 3. Nd2 {[%emt 0:00:00]} c5 {[%emt 0:00:00]} 4. exd5 {[%emt 0:00:00]} exd5 {[%emt 0:00:00]} 5. Ngf3 {[%emt 0:00:30]} Nc6 {[%emt 0:00:30]} 6. Be2 {[%emt 0:02:30]} Nf6 {[%emt 0:00:00]} 7. O-O {[%emt 0:00:30]} Be7 {[%emt 0:01:00]} 8. dxc5 {[%emt 0:00:00]} Bxc5 {[%emt 0:00:30]} 9. Nb3 {[%emt 0:00:00]} Be7 {[%emt 0:01:30]} 10. Be3 {[%emt 0:00:30]} O-O {[%emt 0:00:30]} 11. Nfd4 {[%emt 0:00:30]} Re8 {[%emt 0:04:30]} 12. c3 {[%emt 0:00:30]} a6 {[%emt 0:01:30]} 13. Qc2 {[%emt 0:01:30]} g6 {[%emt 0:04:30]} 14. Rad1 {[%emt 0:01:30]} Bf8 {[%emt 0:05:30]} 15. Rfe1 {[%emt 0:01:30]} Bg4 {[%emt 0:03:30]} 16. Bxg4 {[%emt 0:00:30]} Nxg4 {[%emt 0:00:30]} 17. h3 {[%emt 0:03:30]} Nxe3 {[%emt 0:00:30]} 18. fxe3 {[%emt 0:00:00]} Ne5 {[%emt 0:04:30]} 19. Qf2 {[%emt 0:00:00]} Bh6 {[%emt 0:02:30]} 20. e4 {[%emt 0:07:30]} Nc4 {[%emt 0:00:30]} 21. Kh1 {[%emt 0:00:30]} Qc7 {[%emt 0:08:30]} 22. exd5 {[%emt 0:00:30]} Ne3 {[%emt 0:00:30]} 23. Rd3 {[%emt 0:01:30]} Nxd5 {[%emt 0:00:30]} 24. Rf1 {[%emt 0:00:30]} Nf4 {[%emt 0:14:30]} 25. Rf3 {[%emt 0:00:30]} Nh5 {[%emt 0:05:30]} 26. g4 {[%emt 0:01:30]} Be3 {[%emt 0:06:30]} 27. Rxe3 {[%emt 0:00:30]} Rxe3 {[%emt 0:00:30]} 28. Qxe3 {[%emt 0:00:30]} Ng3+ {[%emt 0:00:00]} 29. Kg2 {[%emt 0:00:00]} 1/2-1/2

[Event "8th Mersin Open 2024"]
[Site "Mersin"]
[Date "2024.11.11"]
[Round "2"]
[White "Ozturk, Yucel Mert"]
[Black "Eroglu, Ilgin Deniz"]
[Result "1-0"]
[ECO "D05"]
[WhiteElo "1545"]
[BlackElo "1599"]
[Annotator "NA RC"]
[PlyCount "99"]
[EventDate "2024.11.10"]
[EventType "swiss"]
[EventCountry "TUR"]
[SourceTitle "playchess.com"]
[Source "ChessBase"]
[SourceQuality "1"]
[TimeControl "5400+30"]

1. d4 {[%emt 0:01:00]} d5 {[%emt 0:01:00]} 2. Nf3 {[%emt 0:00:00]} Nf6 {[%emt 0:00:30]} 3. e3 {[%emt 0:00:00]} e6 {[%emt 0:01:30]} 4. Bd3 {[%emt 0:00:30]} Nbd7 {[%emt 0:00:30]} 5. Nbd2 {[%emt 0:00:30]} c5 {[%emt 0:01:30]} 6. b3 {[%emt 0:01:30]} Be7 {[%emt 0:01:30]} 7. Bb2 {[%emt 0:00:30]} O-O {[%emt 0:01:30]} 8. O-O {[%emt 0:00:30]} b6 {[%emt 0:01:30]} 9. Ne5 {[%emt 0:05:30]} Bb7 {[%emt 0:02:30]} 10. Qf3 {[%emt 0:03:30]} Qc7 {[%emt 0:04:30]} 11. Qh3 {[%emt 0:08:30]} h6 {[%emt 0:09:30]} 12. f4 {[%emt 0:07:30]} Nxe5 {[%emt 0:09:30]} 13. fxe5 {[%emt 0:00:30]} Ne4 {[%emt 0:08:30]} 14. Nxe4 {[%emt 0:16:30]} dxe4 {[%emt 0:00:30]} 15. Bc4 {[%emt 0:00:00]} a6 {[%emt 0:02:30]} 16. c3 {[%emt 0:11:00]} b5 {[%emt 0:02:30]} 17. Be2 {[%emt 0:00:30]} c4 {[%emt 0:01:30]} 18. Rf2 {[%emt 0:02:30]} Bd5 {[%emt 0:01:30]} 19. bxc4 {[%emt 0:06:30]} Bxc4 {[%emt 0:02:30]} 20. Qg4 {[%emt 0:04:30]} Bxe2 {[%emt 0:01:30]} 21. Rxe2 {[%emt 0:00:00]} Qc4 {[%emt 0:01:30]} 22. Rf2 {[%emt 0:02:00]} Qd5 {[%emt 0:04:30]} 23. h4 {[%emt 0:06:30]} a5 {[%emt 0:01:30]} 24. Raf1 {[%emt 0:03:45]} Qxa2 {[%emt 0:11:30]} 25. Qh5 {[%emt 0:05:36]} f5 {[%emt 0:00:30]} 26. exf6 {[%emt 0:00:14]} Bxf6 {[%emt 0:02:30]} 27. Rxf6 {[%emt 0:01:20]} Qxb2 {[%emt 0:12:05]} 28. Rf7 {[%emt 0:05:32]} Rxf7 {[%emt 0:01:06]} 29. Qxf7+ {[%emt 0:00:30]} Kh8 {[%emt 0:00:30]} 30. Qxe6 {[%emt 0:01:20]} Qxc3 {[%emt 0:00:00]} 31. Qxe4 {[%emt 0:00:28]} Rc8 {[%emt 0:00:26]} 32. d5 {[%emt 0:02:03]} Qc4 {[%emt 0:02:08]} 33. Qxc4 {[%emt 0:02:23]} bxc4 {[%emt 0:00:36]} 34. Rc1 {[%emt 0:00:52]} Kg8 {[%emt 0:00:00]} 35. Kf2 {[%emt 0:00:23]} Kf7 {[%emt 0:00:00]} 36. Kf3 {[%emt 0:02:12]} Ke7 {[%emt 0:00:09]} 37. Ke4 {[%emt 0:00:11]} Kd6 {[%emt 0:00:08]} 38. Kd4 {[%emt 0:00:17]} c3 {[%emt 0:00:11]} 39. e4 {[%emt 0:00:00]} Rb8 {[%emt 0:04:41]} 40. Rxc3 {[%emt 0:00:03]} Rb4+ {[%emt 0:00:18]} 41. Rc4 {[%emt 0:00:06]} Rb2 {[%emt 0:00:00]} 42. Rc6+ {[%emt 0:00:41]} Kd7 {[%emt 0:00:12]} 43. Rg6 {[%emt 0:00:02]} Rb4+ {[%emt 0:01:15]} 44. Ke5 {[%emt 0:00:18]} a4 {[%emt 0:00:07]} 45. Rxg7+ {[%emt 0:00:09]} Kd8 {[%emt 0:00:00]} 46. Ra7 {[%emt 0:00:14]} Rb2 {[%emt 0:00:54]} 47. g4 {[%emt 0:00:45]} Rh2 {[%emt 0:00:16]} 48. Kd6 {[%emt 0:00:43]} Ke8 {[%emt 0:00:12]} 49. e5 {[%emt 0:00:36]} Rxh4 {[%emt 0:00:44]} 50. e6 {[%emt 0:00:06]} 1-0

[Event "8th Mersin Open 2024"]
[Site "Mersin"]
[Date "2024.11.11"]
[Round "2"]
[White "Saygin, Omer"]
[Black "Doygun, Lena"]
[Result "1/2-1/2"]
[ECO "B40"]
[WhiteElo "1542"]
[BlackElo "1593"]
[Annotator "NA RC"]
[PlyCount "82"]
[EventDate "2024.11.10"]
[EventType "swiss"]
[EventCountry "TUR"]
[SourceTitle "playchess.com"]
[Source "ChessBase"]
[SourceQuality "1"]
[TimeControl "5400+30"]

1. e4 {[%emt 0:01:00]} c5 {[%emt 0:01:00]} 2. Nf3 {[%emt 0:00:30]} e6 {[%emt 0:00:00]} 3. c3 {[%emt 0:01:30]} d5 {[%emt 0:00:00]} 4. exd5 {[%emt 0:00:30]} exd5 {[%emt 0:00:30]} 5. Be2 {[%emt 0:03:30]} Nf6 {[%emt 0:00:00]} 6. d3 {[%emt 0:00:30]} Bd6 {[%emt 0:00:00]} 7. Bg5 {[%emt 0:01:30]} O-O {[%emt 0:00:30]} 8. O-O {[%emt 0:00:30]} Bf5 {[%emt 0:00:30]} 9. Qb3 {[%emt 0:03:30]} Qb6 {[%emt 0:02:30]} 10. Qxb6 {[%emt 0:03:30]} axb6 {[%emt 0:00:30]} 11. Bxf6 {[%emt 0:00:00]} gxf6 {[%emt 0:00:00]} 12. Nh4 {[%emt 0:04:00]} Bd7 {[%emt 0:02:00]} 13. f4 {[%emt 0:08:30]} Re8 {[%emt 0:03:30]} 14. Bh5 {[%emt 0:07:30]} Bb5 {[%emt 0:00:30]} 15. Nf5 {[%emt 0:04:30]} Bf8 {[%emt 0:02:30]} 16. Rf3 {[%emt 0:01:30]} Kh8 {[%emt 0:04:30]} 17. Bxf7 {[%emt 0:03:30]} Re1+ {[%emt 0:02:30]} 18. Kf2 {[%emt 0:00:30]} Rd1 {[%emt 0:01:30]} 19. Rg3 {[%emt 0:00:30]} Bg7 {[%emt 0:00:30]} 20. Rxg7 {[%emt 0:00:30]} Nc6 {[%emt 0:00:30]} 21. Rg3 {[%emt 0:03:30]} Bxd3 {[%emt 0:00:30]} 22. Nh6 {[%emt 0:04:30]} d4 {[%emt 0:01:30]} 23. Rg4 {[%emt 0:12:30]} Ne7 {[%emt 0:04:30]} 24. Be6 {[%emt 0:09:30]} Rf1+ {[%emt 0:01:30]} 25. Kg3 {[%emt 0:00:30]} Ng6 {[%emt 0:02:30]} 26. Nf7+ {[%emt 0:06:55]} Kg7 {[%emt 0:00:00]} 27. f5 {[%emt 0:03:45]} Bxf5 {[%emt 0:02:00]} 28. Bxf5 {[%emt 0:01:25]} Rxf5 {[%emt 0:00:30]} 29. Nd6 {[%emt 0:01:06]} Rf1 {[%emt 0:01:30]} 30. cxd4 {[%emt 0:01:05]} f5 {[%emt 0:01:30]} 31. Rg5 {[%emt 0:06:36]} Kf6 {[%emt 0:01:30]} 32. Rxf5+ {[%emt 0:00:11]} Rxf5 {[%emt 0:00:30]} 33. Nxf5 {[%emt 0:00:09]} Kxf5 {[%emt 0:00:00]} 34. dxc5 {[%emt 0:00:45]} bxc5 {[%emt 0:00:00]} 35. Nc3 {[%emt 0:00:00]} Re8 {[%emt 0:00:30]} 36. Rf1+ {[%emt 0:00:00]} Kg5 {[%emt 0:01:30]} 37. Rf7 {[%emt 0:01:55]} h5 {[%emt 0:00:30]} 38. Rxb7 {[%emt 0:01:35]} h4+ {[%emt 0:01:30]} 39. Kf2 {[%emt 0:00:59]} Nf4 {[%emt 0:01:30]} 40. Rd7 {[%emt 0:00:50]} c4 {[%emt 0:00:30]} 41. Rd2 {[%emt 0:02:52]} Nd3+ {[%emt 0:00:30]} 1/2-1/2

[Event "8th Mersin Open 2024"]
[Site "Mersin"]
[Date "2024.11.11"]
[Round "2"]
[White "Sahin, Mert"]
[Black "Bogday, Gunes"]
[Result "1-0"]
[ECO "A07"]
[WhiteElo "1534"]
[BlackElo "1539"]
[Annotator "NA RC"]
[PlyCount "81"]
[EventDate "2024.11.10"]
[EventType "swiss"]
[EventCountry "TUR"]
[SourceTitle "playchess.com"]
[Source "ChessBase"]
[SourceQuality "1"]
[TimeControl "5400+30"]

1. Nf3 {[%emt 0:01:00]} d5 {[%emt 0:07:00]} 2. g3 {[%emt 0:00:30]} Nf6 {[%emt 0:00:00]} 3. Bg2 {[%emt 0:00:00]} g6 {[%emt 0:00:00]} 4. O-O {[%emt 0:00:00]} Bg7 {[%emt 0:00:30]} 5. d3 {[%emt 0:00:00]} O-O {[%emt 0:00:30]} 6. Nbd2 {[%emt 0:00:00]} Re8 {[%emt 0:00:30]} 7. e4 {[%emt 0:00:00]} e5 {[%emt 0:01:30]} 8. c3 {[%emt 0:00:00]} Nc6 {[%emt 0:00:30]} 9. Qe2 {[%emt 0:00:30]} d4 {[%emt 0:00:30]} 10. Rd1 {[%emt 0:00:30]} Be6 {[%emt 0:01:30]} 11. h3 {[%emt 0:00:30]} Qd7 {[%emt 0:00:30]} 12. Ng5 {[%emt 0:01:30]} dxc3 {[%emt 0:02:30]} 13. bxc3 {[%emt 0:00:00]} Rad8 {[%emt 0:00:30]} 14. Nxe6 {[%emt 0:01:00]} Rxe6 {[%emt 0:00:30]} 15. Nc4 {[%emt 0:00:30]} a6 {[%emt 0:01:30]} 16. Ba3 {[%emt 0:00:30]} b5 {[%emt 0:03:30]} 17. Ne3 {[%emt 0:00:30]} Bf8 {[%emt 0:05:30]} 18. Bxf8 {[%emt 0:01:30]} Kxf8 {[%emt 0:01:30]} 19. a3 {[%emt 0:00:30]} a5 {[%emt 0:07:30]} 20. Nc2 {[%emt 0:01:30]} Rd6 {[%emt 0:05:30]} 21. Bf1 {[%emt 0:00:30]} Nh5 {[%emt 0:07:30]} 22. Rab1 {[%emt 0:01:30]} Rb8 {[%emt 0:03:30]} 23. Qe3 {[%emt 0:00:30]} Kg7 {[%emt 0:01:30]} 24. Kh2 {[%emt 0:01:30]} f5 {[%emt 0:01:30]} 25. Be2 {[%emt 0:00:30]} Nf6 {[%emt 0:01:30]} 26. h4 {[%emt 0:02:30]} Qe6 {[%emt 0:10:30]} 27. Kg2 {[%emt 0:02:30]} fxe4 {[%emt 0:03:30]} 28. dxe4 {[%emt 0:00:30]} Rxd1 {[%emt 0:00:30]} 29. Rxd1 {[%emt 0:00:00]} Qb3 {[%emt 0:00:30]} 30. Rc1 {[%emt 0:01:00]} b4 {[%emt 0:01:30]} 31. cxb4 {[%emt 0:00:30]} Qxe3 {[%emt 0:00:30]} 32. Nxe3 {[%emt 0:00:00]} Nd4 {[%emt 0:01:30]} 33. Rxc7+ {[%emt 0:01:00]} Kf8 {[%emt 0:00:30]} 34. Bc4 {[%emt 0:00:00]} Nxe4 {[%emt 0:01:30]} 35. Rxh7 {[%emt 0:01:00]} Rd8 {[%emt 0:01:30]} 36. bxa5 {[%emt 0:02:30]} Nd2 {[%emt 0:01:30]} 37. Rh8+ {[%emt 0:01:30]} Ke7 {[%emt 0:00:30]} 38. Nd5+ {[%emt 0:00:30]} Kd7 {[%emt 0:00:30]} 39. Rh7+ {[%emt 0:00:00]} Ke8 {[%emt 0:00:30]} 40. Nf6+ {[%emt 0:00:00]} Kf8 {[%emt 0:00:00]} 41. Rf7# {[%emt 0:00:30]} 1-0